Workbook

Sheet Intro
B2: In this spreadsheet, the cells are not locked, but the file is set as Read Only. (To change this, right click on the file in File Explorer and click on Properties). When you make changes and save the file, you would save it with a new name. That way, your master file remains unchanged. In the Basic Info sheet, enter your costs in the green cells. The Mix Design sheet will keep the volume at 1 cf. This is why you do not enter the sand value on the mix design sheet, this is a calculated value to hold the total at 1 cf. Play with the number in green on the Mix Design sheet and watch the sand value change. Keep about a 50-50 sand cementitious ratio. Once you have a mix design for a specific project you will only use the Amount Required and the Batch Weights sheets for batching. In the Batch Sheet, adjust the cubic feet to give an even number of batches. Print a batch sheet of the batch weights page and you're ready to go! Please feel free to contact me with any questions about Trinic's products, we're very proud of what we've developed. Good casting.
B3: Revised by Gadsby Concrete Designs | F3: info@gadsbyconcrete.com
B5: Original by
B7: Mark Celebuski
B8: mark@trinic.us
B9: www.trinic.us
B10: Office: 800-475-1975
B11: Cell: 717-823-7408
B13: Like us on Facebook and visit our YouTube page for continuing education.
B14: http://www.facebook.com/pages/Trinic-LLC/317203778314580
B15: https://www.youtube.com/user/TrinicLLC/featured

Sheet Basic Info
A1: Trinic GFRC Mix Designs
F3: Rev. Date | G3: 2018-07-04
A4: Enter data in green cells in the spreadsheet
A5: Enter basic data below - other sheets will use this data
A6: Material | B6: Specific Gravity | C6: Cost/bag/pail | D6: Cost/lb
A7: Portland Cement | B7: 3.15 | C7: 29 | D7: =C7/80 -> 0.3625
A8: CSA Cement | B8: 3 | C8: 45 | D8: =C8/50 -> 0.9
A9: Silica Fume | B9: 2.62 | C9: 95 | D9: =C9/50 -> 1.9
A10: Sand | B10: 2.65 | C10: 8 | D10: =C10/50 -> 0.16
A12: Trinic Admixtures | B12: Cost / lb
A13: Trinic GFRC / Tec10 Admix | B13: =306/25 -> 12.24
A14: Trinic Plastisicer | B14: =306/25 -> 12.24
A15: Glass Fiber 3/4" or 1/2" | B15: =93/20 -> 4.65
A16: HD 3mm | B16: =132/40 -> 3.3
A17: Trinic Hydration Stablizer | B17: =129/25 -> 5.16
A18: Trinic Stage II Accelerator | B18: 3.8
A19: CS Additive | B19: 8.5
A21: Intergral Colors ↓ | B21: Cost / lb
A22: White
A23: Black
A24: Cinder
A25: Brown
A26: Gray
A27: Cobalt Blue
A29: Different Color? Simply Change the name and the price and the spreadsheet will do the rest

Sheet Mix Design
A2: Mix Name | D2: BackerCoat
H4: ='Basic Info'!$C$3 -> 0
A5: Last Revision
A6: ='Basic Info'!$G$3 -> 2018-07-04 | B6: SSD wt | C6: Percentage | D6: S.G. | E6: Abs vol | F6: Batch Weight (lbs.) | H6: SSD Cost | I6: Mix Name: | K6: =D2 -> BackerCoat
A7: ='Basic Info'!A7 -> Portland Cement | B7: 55.56 | D7: ='Basic Info'!B7 -> 3.15 | E7: =B7/62.4/D7 -> 0.2826617827 | F7: =B7 -> 55.56 | H7: =F7*'Basic Info'!$D$7 -> 20.1405
A8: ='Basic Info'!A8 -> CSA Cement | B8: =K9*B7 -> 0 | D8: ='Basic Info'!B8 -> 3 | E8: =B8/62.4/D8 -> 0 | F8: =B8 -> 0 | H8: =F8*'Basic Info'!$D$8 -> 0 | J8: DesiredYield | K8: 1 | L8: ft^3
A9: ='Basic Info'!A9 -> Silica Fume | B9: =K11*B7 -> 5.556 | D9: ='Basic Info'!B9 -> 2.62 | E9: =B9/62.4/D9 -> 0.03398414563 | F9: =B9 -> 5.556 | H9: =F9*'Basic Info'!$D$9 -> 10.5564 | J9: CSA % of Port | K9: 0
A10: Total Cementious | B10: =SUM(B7:B9) -> 61.116 | C10: =B10/(B10+B11) -> 0.5000449624
A11: ='Basic Info'!A10 -> Sand | B11: =E11*(D11*62.4) -> 61.1050093 | C11: =B11/(B11+B10) -> 0.4999550376 | D11: ='Basic Info'!B10 -> 2.65 | E11: =K8-E7-E8-E9-E12-E14 -> 0.3695271486 | F11: =B11 -> 61.1050093 | H11: =F11*'Basic Info'!$D$10 -> 9.776801488 | J11: S F % of Port | K11: 0.1
A12: Water | B12: =K13*(B9+B8+B7) -> 18.3348 | D12: 1 | E12: =B12/62.4 -> 0.2938269231 | F12: =B12 -> 18.3348 | J12: Tot. Weight | K12: =B7+B8+B9+B11+B12+F16+F17+F18+F20+F21+F24+F25+F26+F27+F28+F29 -> 146.0559196 | L12: lbs
J13: Wat/Cem | K13: 0.3
A14: Air % | B14: 2 | E14: =(B14/100)*K8 -> 0.02 | J14: Unit Wt | K14: =K12/K8 -> 146.0559196 | L14: pcf
A16: ='Basic Info'!A13 -> Trinic GFRC / Tec10 Admix | C16: % of Cementitious | D16: 3 | E16: lbs. / cf | F16: =((D16*(F7+F8+F9))/100) -> 1.83348 | G16: =F16*'Basic Info'!$B$13 -> 22.4417952
A17: ='Basic Info'!A14 -> Trinic Plastisicer | C17: % of Cementitious | E17: lbs. / cf | F17: =((D17*(F7+F8+F9))/100) -> 0 | G17: =F17*'Basic Info'!$B$14 -> 0 | I17: Cost / cf | J17: =SUM(H7:H14,G16:G29) -> 79.96532748
A18: ='Basic Info'!A15 -> Glass Fiber 3/4" or 1/2" | C18: % of Total Batch lbs. | D18: 3 | E18: lbs. / cf | F18: =((D18*(F7+F8+F9+F11))/100) -> 3.666630279 | G18: =F18*'Basic Info'!$B$15 -> 17.0498308 | I18: sq. ft. 3/4" | J18: =J17/16 -> 4.997832968
A19: ='Basic Info'!A16 -> HD 3mm | C19: % of Total Batch lbs. | D19: 0 | E19: lbs. / cf | F19: =((D19*(F7+F8+F9+F11))/100) -> 0 | G19: =F19*'Basic Info'!B16 -> 0
A20: ='Basic Info'!A17 -> Trinic Hydration Stablizer | C20: % of Cementitious | E20: lbs. / cf | F20: =((D20*(F7+F8+F9))/100) -> 0 | G20: =F20*'Basic Info'!B17 -> 0
A21: ='Basic Info'!A18 -> Trinic Stage II Accelerator | C21: % of Cementitious | E21: lbs. / cf | F21: =((D21*(F7+F8+F9))/100) -> 0 | G21: =(F21)*'Basic Info'!$B$18 -> 0
A22: CS Additive | C22: % Replacement of Water | D22: 0 | E22: lbs. / cf | F22: =D22*B12 -> 0 | G22: =F22*'Basic Info'!B19 -> 0
A23: Intergral Color ↓
A24: ='Basic Info'!A22 -> White | C24: % of Cementitious | E24: lbs. / cf | F24: =((D24*(F7+F8+F9))/100) -> 0 | G24: =F24*'Basic Info'!B22 -> 0
A25: ='Basic Info'!A23 -> Black | C25: % of Cementitious | E25: lbs. / cf | F25: =((D25*(F7+F8+F9))/100) -> 0 | G25: =F25*'Basic Info'!B23 -> 0
A26: ='Basic Info'!A24 -> Cinder | C26: % of Cementitious | E26: lbs. / cf | F26: =((D26*(F7+F8+F9))/100) -> 0 | G26: =F26*'Basic Info'!B24 -> 0
A27: ='Basic Info'!A25 -> Brown | C27: % of Cementitious | E27: lbs. / cf | F27: =((D27*(F7+F8+F9))/100) -> 0 | G27: =F27*'Basic Info'!B25 -> 0
A28: ='Basic Info'!A26 -> Gray | C28: % of Cementitious | E28: lbs. / cf | F28: =((D28*(F7+F8+F9))/100) -> 0 | G28: =F28*'Basic Info'!B26 -> 0
A29: ='Basic Info'!A27 -> Cobalt Blue | C29: % of Cementitious | E29: lbs. / cf | F29: =((D29*(F7+F8+F9)/100)) -> 0 | G29: =F29*'Basic Info'!B27 -> 0
E32: 0

Sheet Amount Required
A1: Fill in Green Cells
A6: Amout Required
A7: Depth | B7: 0.75 | C7: inches
A8: Piece # | B8: Length(in) | C8: Width(in) | D8: # of Pieces | E8: CF Required | F8: Weight
A9: 1 | B9: 12 | C9: 12 | D9: 1 | E9: =((B9/12)*(C9/12))*(B7/12)*D9 -> 0.0625 | F9: =E9*'Mix Design'!K14 -> 9.128494974
A10: 2 | E10: =((B10/12)*(C10/12))*(B7/12)*D10 -> 0 | F10: =E10*'Mix Design'!K14 -> 0
A11: 3 | E11: =((B11/12)*(C11/12))*(B7/12)*D11 -> 0 | F11: =E11*'Mix Design'!K14 -> 0
A12: 4 | E12: =((B12/12)*(C12/12))*(B7/12)*D12 -> 0 | F12: =E12*'Mix Design'!K14 -> 0
A13: 5 | E13: =((B13/12)*(C13/12))*(B7/12)*D13 -> 0 | F13: =E13*'Mix Design'!K14 -> 0
A14: 6 | E14: =((B14/12)*(C14/12))*(B7/12)*D14 -> 0 | F14: =E14*'Mix Design'!K14 -> 0
A15: 7 | E15: =((B15/12)*(C15/12))*(B7/12)*D15 -> 0 | F15: =E15*'Mix Design'!K14 -> 0
A16: 8 | E16: =((B16/12)*(C16/12))*(B7/12)*D16 -> 0 | F16: =E16*'Mix Design'!K14 -> 0
A17: 9 | E17: =((B17/12)*(C17/12))*(B7/12)*D17 -> 0 | F17: =E17*'Mix Design'!K14 -> 0
A18: Opening | E18: =(((B18/12)*(C18/12))*(B7/12))*-1*D18 -> 0 | F18: =E18*'Mix Design'!K14 -> 0
A19: Opening | E19: =(((B19/12)*(C19/12))*(B7/12))*-1*D19 -> 0 | F19: =E19*'Mix Design'!K14 -> 0
C20: Concrete Sink | F20: =E20*'Mix Design'!K14 -> 0
C21: Concrete Sink | F21: =E21*'Mix Design'!K14 -> 0
C22: Total cf | E22: =SUM(E9:E20) -> 0.0625 | F22: =SUM(F9:F21) -> 9.128494974
C23: Total cf + 5% | E23: =E22*1.05 -> 0.065625
C24: Cost $ - | D24: =E23*'Mix Design'!J17 -> 5.247724616

Sheet Batch Weights
B2: Mix Name | C2: ='Mix Design'!K6 -> BackerCoat | E2: Number of Batches Needed | F2: =C5/F5 -> 0.1640625
B4: Total Project Requirements (lbs.) | E4: Batch Weights (lbs.)
B5: Total CF | C5: ='Amount Required'!E23 -> 0.065625 | E5: Batch Size (CF) | F5: 0.4
B6: ='Mix Design'!A7 -> Portland Cement | C6: ='Mix Design'!F7*C5 -> 3.646125 | E6: =B6 -> Portland Cement | F6: =F5*'Mix Design'!F7 -> 22.224
B7: ='Mix Design'!A8 -> CSA Cement | C7: ='Mix Design'!F8*C5 -> 0 | E7: CSA Cement | F7: =F5*'Mix Design'!F8 -> 0
B8: ='Mix Design'!A9 -> Silica Fume | C8: ='Mix Design'!F9*C5 -> 0.3646125 | E8: Silica Fume | F8: =F5*'Mix Design'!F9 -> 2.2224
B9: ='Mix Design'!A11 -> Sand | C9: ='Mix Design'!F11*C5 -> 4.010016235 | E9: Sand | F9: =F5*'Mix Design'!F11 -> 24.44200372
B10: ='Mix Design'!A12 -> Water | C10: =('Mix Design'!F12*C5) - C17 -> 1.20322125 | E10: Water | F10: =(F5*'Mix Design'!F12)-F17 -> 7.33392
B11: ='Mix Design'!A16 -> Trinic GFRC / Tec10 Admix | C11: ='Mix Design'!F16*C5 -> 0.120322125 | E11: Trinic GFRC / Tec10 Admix | F11: =F5*'Mix Design'!F16 -> 0.733392
B12: ='Mix Design'!A17 -> Trinic Plastisicer | C12: ='Mix Design'!F17*C5 -> 0 | E12: Trinic Plastisicer | F12: =F5*'Mix Design'!F17 -> 0
B13: ='Mix Design'!A18 -> Glass Fiber 3/4" or 1/2" | C13: ='Mix Design'!F18*C5 -> 0.2406226121 | E13: Glass Fiber 3/4" or 1/2" | F13: =F5*'Mix Design'!F18 -> 1.466652112
B14: ='Mix Design'!A19 -> HD 3mm | C14: =C5*'Mix Design'!F19 -> 0 | E14: ='Mix Design'!A19 -> HD 3mm | F14: =F5*'Mix Design'!F19 -> 0
B15: ='Mix Design'!A20 -> Trinic Hydration Stablizer | C15: =C5*'Mix Design'!F20 -> 0 | E15: Trinic Hydration Stablizer | F15: =F5*'Mix Design'!F20 -> 0
B16: ='Mix Design'!A21 -> Trinic Stage II Accelerator | C16: =C5*'Mix Design'!F21:F21 -> 0 | E16: Trinic Stage II Accelerator | F16: =F5*'Mix Design'!F21 -> 0
B17: ='Mix Design'!A22 -> CS Additive | C17: =C5*'Mix Design'!F22 -> 0 | E17: ='Mix Design'!A22 -> CS Additive | F17: =F5*'Mix Design'!F22 -> 0
B18: Intergral Colors ↓ | E18: Intergral Colors ↓
B19: ='Basic Info'!A22 -> White | C19: =C5*'Mix Design'!F24 -> 0 | E19: =B19 -> White | F19: =F5*'Mix Design'!F24 -> 0
B20: ='Basic Info'!A23 -> Black | C20: =C5*'Mix Design'!F25 -> 0 | E20: Black | F20: =F5*'Mix Design'!F25 -> 0
B21: ='Basic Info'!A24 -> Cinder | C21: =C5*'Mix Design'!F26 -> 0 | E21: Cinder | F21: =F5*'Mix Design'!F26 -> 0
B22: ='Basic Info'!A25 -> Brown | C22: =C5*'Mix Design'!F27 -> 0 | E22: Brown | F22: =F5*'Mix Design'!F27 -> 0
B23: ='Basic Info'!A26 -> Gray | C23: =C5*'Mix Design'!F28 -> 0 | E23: Gray | F23: =F5*'Mix Design'!F28 -> 0
B24: ='Basic Info'!A27 -> Cobalt Blue | C24: =C5*'Mix Design'!F29 -> 0 | E24: Cobalt Blue | F24: =F5*'Mix Design'!D29 -> 0
B25: Total Weight (lbs.) | C25: =SUM(C6:C24) -> 9.584919722 | E25: Total Weight (lbs.) | F25: =SUM(F6:F24) -> 58.42236783
